fUST/lending_fUST_20241220
["ID","MTS","AMOUNT","RATE_DAILY","PERIOD"]
[346077242,1734693088347,-1508.58,0.00023287,6]
[346077243,1734693088357,-500.0,0.00023287,2]
[346077244,1734693088367,-668.4,0.00023287,6]
[346077245,1734693088377,-564.28,0.00023287,6]
[346077246,1734693088387,-500.0,0.00023287,6]
[346077247,1734693088396,-1278.74,0.00023287,6]
[346077248,1734693088406,-800.05,0.00023287,6]
[346077249,1734693088417,-2906.3,0.00023287,6]
[346077250,1734693088431,-500.0,0.00023287,6]
[346077251,1734693088441,-1066.82,0.00023287,6]
[346077252,1734693088453,-4154.09,0.00023287,6]
[346077253,1734693088468,-2034.35,0.00023287,6]
[346077254,1734693088479,-5761348.54825917,0.00023288,10]
[346077255,1734693088489,-1262.667456,0.00023288,7]
[346077256,1734693088501,-365.239564,0.00023288,7]
[346077257,1734693088511,-365.239564,0.00023288,7]
[346077258,1734693088522,-339.519478,0.00023288,7]
[346077259,1734693088533,-339.519478,0.00023288,7]
[346077260,1734693088543,-437.27524,0.00023288,7]
[346077261,1734693088555,-437.27524,0.00023288,7]
[346077262,1734693088565,-4532.594349,0.00023288,7]
[346077263,1734693088575,-208.099156,0.00023288,7]
[346077264,1734693088584,-208.099156,0.00023288,7]
[346077265,1734693088593,-151.0,0.00023288,7]
[346077266,1734693088604,-744.530375,0.00023288,7]
[346077267,1734693088613,-744.530375,0.00023288,7]
[346077268,1734693088623,-258.234953,0.00023288,7]
[346077269,1734693088632,-151.0,0.00023288,7]
[346077270,1734693088642,-258.234953,0.00023288,7]
[346077271,1734693088652,-413.026202,0.00023288,7]
[346077272,1734693088661,-413.026202,0.00023288,7]
[346077273,1734693088671,-3922.68197,0.00023288,7]
[346077274,1734693088680,-3922.68197,0.00023288,7]
[346077275,1734693088690,-162.087698,0.00023288,7]
[346077276,1734693088700,-162.087698,0.00023288,7]
[346077277,1734693088712,-3405.57585,0.00023288,7]
[346077278,1734693088722,-3405.57585,0.00023288,7]
[346077279,1734693088732,-283.033407,0.00023288,7]
[346077280,1734693088741,-283.033407,0.00023288,7]
[346077281,1734693088752,-186.82888,0.00023288,7]
[346077282,1734693088762,-151.0,0.00023288,7]
[346077283,1734693088772,-186.82888,0.00023288,7]
[346077284,1734693088782,-189.753428,0.00023288,7]
[346077285,1734693088794,-189.753428,0.00023288,7]
[346077286,1734693088804,-1273.08209,0.00023288,7]
[346077287,1734693088814,-1079.40644,0.00023288,7]
[346077288,1734693088823,-1273.082084,0.00023288,7]
[346077289,1734693088833,-1079.40644,0.00023288,7]
[346077290,1734693088844,-681.759088,0.00023288,7]
[346077291,1734693088853,-681.759088,0.00023288,7]
[346077292,1734693088862,-151.0,0.00023288,7]
[346077293,1734693088872,-1141.775585,0.00023288,7]
[346077294,1734693088882,-1141.775594,0.00023288,7]
[346077295,1734693088892,-4838.119892,0.00023288,7]
[346077296,1734693088902,-4838.119894,0.00023288,7]
[346077297,1734693088912,-151.0,0.00023288,7]
[346077298,1734693088922,-335.036907,0.00023288,7]
[346077299,1734693088931,-335.036907,0.00023288,7]
[346077300,1734693088941,-151.386173,0.00023288,7]
[346077301,1734693088958,-151.0,0.00023288,7]
[346077302,1734693088973,-151.38617526,0.00023288,7]
[346077303,1734693088984,-151.0,0.00023288,7]
[346077304,1734693088994,-246.329835,0.00023288,7]
[346077305,1734693089005,-246.329838,0.00023288,7]
[346077306,1734693089015,-2000.0,0.000234,2]
[346077307,1734693089025,-1480.54287505,0.00023473,2]
[346077308,1734693089035,-2000.0,0.000235,2]
[346077309,1734693089046,-703.0,0.000235,10]
[346077310,1734693089057,-1500.0,0.00023522,2]
[346077311,1734693089068,-1500.0,0.00023522,2]
[346077312,1734693089079,-452.00317917,0.00023522,2]
[346077313,1734693089089,-1500.0,0.00023522,2]
[346077314,1734693089099,-1500.0,0.00023522,2]
[346077315,1734693089109,-1500.0,0.00023522,2]
[346077316,1734693089119,-772.35112235,0.00023522,2]
[346077317,1734693089129,-523.10248294,0.00023522,2]
[346077318,1734693089139,-305.149825,0.0002356,7]
[346077319,1734693089149,-305.149825,0.0002356,7]
[346077320,1734693089159,-409.274072,0.0002356,7]
[346077321,1734693089169,-409.274072,0.0002356,7]
[346077322,1734693089179,-724.775,0.00023561,6]
[346077323,1734693089189,-150.08,0.00023561,6]
[346077324,1734693089200,-500.0,0.00023561,6]
[346077325,1734693089212,-500.0,0.00023561,6]
[346077326,1734693089222,-151.0,0.00023561,7]
[346077327,1734693089231,-151.0,0.00023561,7]
[346077328,1734693089241,-151.0,0.00023561,7]
[346077329,1734693089252,-151.0,0.00023561,7]
[346077330,1734693089262,-151.0,0.00023561,7]
[346077331,1734693089271,-151.0,0.00023561,7]
[346077332,1734693089281,-305.149825,0.00023561,7]
[346077333,1734693089291,-305.149825,0.00023561,7]
[346077334,1734693089302,-409.274072,0.00023561,7]
[346077335,1734693089312,-409.274072,0.00023561,7]
[346077336,1734693089322,-500.0,0.00023561,6]
[346077337,1734693089331,-500.0,0.00023561,6]
[346077338,1734693089341,-602.42,0.00023561,6]
[346077339,1734693089351,-500.0,0.00023561,6]
[346077340,1734693089361,-500.0,0.00023561,6]
[346077341,1734693089371,-500.0,0.00023561,6]
[346077342,1734693089381,-1144.54,0.00023561,6]
[346077343,1734693089392,-500.0,0.00023561,6]
[346077344,1734693089401,-1262.667456,0.00023561,7]
[346077345,1734693089412,-500.0,0.00023561,6]
[346077346,1734693089423,-317.43602896,0.00023561,6]
[346077347,1734693089433,-502.23,0.00023561,6]
[346077348,1734693089443,-500.0,0.00023561,6]
[346077349,1734693089453,-500.0,0.00023561,6]
[346077350,1734693089468,-500.0,0.00023561,6]
[346077351,1734693089478,-516.97499526,0.00023561,6]
[346077352,1734693089489,-504.17,0.00023561,6]
[346077353,1734693089499,-500.0,0.00023561,6]
[346077354,1734693089508,-649.76,0.00023561,6]
[346077355,1734693089519,-660.53,0.00023561,6]
[346077356,1734693089529,-500.0,0.00023561,6]
[346077357,1734693089540,-1017.84,0.00023561,6]
[346077358,1734693089549,-546.51150757,0.00023561,6]
[346077359,1734693089559,-365.239564,0.00023561,7]
[346077360,1734693089569,-884.09,0.00023561,6]
[346077361,1734693089579,-500.0,0.00023561,6]
[346077362,1734693089589,-365.239564,0.00023561,7]
[346077363,1734693089598,-500.0,0.00023561,6]
[346077364,1734693089608,-500.0,0.00023561,6]
[346077365,1734693089618,-339.519478,0.00023561,7]
[346077366,1734693089628,-500.0,0.00023561,6]
[346077367,1734693089637,-339.519478,0.00023561,7]
[346077368,1734693089646,-388.12106262,0.00023561,6]
[346077369,1734693089656,-500.0,0.00023561,6]
[346077370,1734693089666,-500.0,0.00023561,6]
[346077371,1734693089676,-500.0,0.00023561,6]
[346077372,1734693089685,-800.6,0.00023561,6]
[346077373,1734693089696,-634.34,0.00023561,6]
[346077374,1734693089708,-957.36,0.00023561,6]
[346077375,1734693089718,-500.0,0.00023561,6]
[346077376,1734693089728,-500.0,0.00023561,6]
[346077377,1734693089738,-500.0,0.00023561,6]
[346077378,1734693089748,-414.93667516,0.00023561,6]
[346077379,1734693089757,-1728.45,0.00023561,6]
[346077380,1734693089767,-500.0,0.00023561,6]
[346077381,1734693089777,-500.0,0.00023561,6]
[346077382,1734693089786,-437.27524,0.00023561,7]
[346077383,1734693089796,-437.27524,0.00023561,7]
[346077384,1734693089806,-505.34075937,0.00023561,6]
[346077385,1734693089815,-723.0,0.00023561,6]
[346077386,1734693089825,-1023.35,0.00023561,6]
[346077387,1734693089835,-565.08,0.00023561,6]
[346077388,1734693089845,-500.0,0.00023561,6]
[346077389,1734693089854,-4532.594349,0.00023561,7]
[346077390,1734693089864,-500.0,0.00023561,6]
[346077391,1734693089874,-1199.17,0.00023561,6]
[346077392,1734693089884,-500.0,0.00023561,6]
[346077393,1734693089894,-500.0,0.00023561,6]
[346077394,1734693089904,-592.75,0.00023561,6]
[346077395,1734693089913,-500.0,0.00023561,6]
[346077396,1734693089923,-212.14802417,0.00023561,6]
[346077397,1734693089933,-500.0,0.00023561,6]
[346077398,1734693089942,-500.0,0.00023561,6]
[346077399,1734693089952,-765.62,0.00023561,6]
[346077400,1734693089965,-522.08279256,0.00023561,6]
[346077401,1734693089974,-388.90427424,0.00023561,6]
[346077402,1734693089983,-500.0,0.00023561,6]
[346077403,1734693089993,-1006.14,0.00023561,6]
[346077404,1734693090003,-500.0,0.00023561,6]
[346077405,1734693090012,-511.089077,0.00023561,6]
[346077406,1734693090022,-887.36,0.00023561,6]
[346077407,1734693090032,-1902.09,0.00023561,6]
[346077408,1734693090042,-500.0,0.00023561,6]
[346077409,1734693090052,-1156.92,0.00023561,6]
[346077410,1734693090061,-208.099156,0.00023561,7]
[346077411,1734693090070,-208.099155,0.00023561,7]
[346077412,1734693090081,-500.0,0.00023561,6]
[346077413,1734693090090,-506.21,0.00023561,6]
[346077414,1734693090101,-538.01,0.00023561,6]
[346077415,1734693090110,-500.0,0.00023561,6]
[346077416,1734693090120,-1161.97,0.00023561,6]
[346077417,1734693090129,-151.0,0.00023561,7]
[346077418,1734693090139,-500.0,0.00023561,6]
[346077419,1734693090148,-500.0,0.00023561,6]
[346077420,1734693090158,-487.88807284,0.00023561,6]
[346077421,1734693090168,-500.0,0.00023561,6]
[346077422,1734693090177,-902.08,0.00023561,6]
[346077423,1734693090187,-744.530375,0.00023561,7]
[346077424,1734693090199,-500.0,0.00023561,6]
[346077425,1734693090211,-1667.53,0.00023561,6]
[346077426,1734693090220,-500.0,0.00023561,6]
[346077427,1734693090229,-580.22,0.00023561,6]
[346077428,1734693090238,-1293.82,0.00023561,6]
[346077429,1734693090247,-744.53038,0.00023561,7]
[346077430,1734693090258,-505.86354268,0.00023561,6]
[346077431,1734693090268,-500.0,0.00023561,6]
[346077432,1734693090278,-1211.12,0.00023561,6]
[346077433,1734693090288,-500.0,0.00023561,6]
[346077434,1734693090297,-500.0,0.00023561,6]
[346077435,1734693090306,-510.93462772,0.00023561,6]
[346077436,1734693090315,-510.23,0.00023561,6]
[346077437,1734693090325,-500.0,0.00023561,6]
[346077438,1734693090335,-988.28,0.00023561,6]
[346077439,1734693090345,-2509.21,0.00023561,6]
[346077440,1734693090354,-1456.58,0.00023561,6]
[346077441,1734693090364,-664.27,0.00023561,6]
[346077442,1734693090374,-500.0,0.00023561,6]
[346077443,1734693090383,-1215.59,0.00023561,6]
[346077444,1734693090393,-1202.07,0.00023561,6]
[346077445,1734693090403,-500.0,0.00023561,6]
[346077446,1734693090414,-500.0,0.00023561,6]
[346077447,1734693090427,-500.0,0.00023561,6]
[346077448,1734693090437,-500.0,0.00023561,6]
[346077449,1734693090447,-500.0,0.00023561,6]
[346077450,1734693090459,-500.0,0.00023561,6]
[346077451,1734693090468,-870.43,0.00023561,6]
[346077452,1734693090478,-500.0,0.00023561,6]
[346077453,1734693090487,-500.0,0.00023561,6]
[346077454,1734693090499,-500.0,0.00023561,6]
[346077455,1734693090510,-500.0,0.00023561,6]
[346077456,1734693090699,-500.0,0.00023561,6]
[346077457,1734693090711,-500.0,0.00023561,6]
[346077458,1734693090721,-534.47,0.00023561,6]
[346077459,1734693090731,-500.0,0.00023561,6]
[346077460,1734693090740,-500.0,0.00023561,6]
[346077461,1734693090750,-500.0,0.00023561,6]
[346077462,1734693090759,-500.0,0.00023561,6]
[346077463,1734693090769,-258.234953,0.00023561,7]
[346077464,1734693090780,-241.27982,0.00023561,7]
[346077465,1734693090790,-500.0,0.00023561,6]
[346077466,1734693090800,-258.23496,0.00023561,7]
[346077467,1734693090810,-663.44,0.00023561,6]
[346077468,1734693090819,-644.54,0.00023561,6]
[346077469,1734693090829,-548.2433365,0.00023561,6]
[346077470,1734693090838,-500.0,0.00023561,6]
[346077471,1734693090848,-200.0,0.00023561,6]
[346077472,1734693090858,-500.0,0.00023561,6]
[346077473,1734693090867,-500.0,0.00023561,6]
[346077474,1734693090877,-500.0,0.00023561,6]
[346077475,1734693090886,-500.0,0.00023561,6]
[346077476,1734693090896,-3028.67,0.00023561,6]
[346077477,1734693090905,-500.0,0.00023561,6]
[346077478,1734693090915,-662.01,0.00023561,6]
[346077479,1734693090924,-500.0,0.00023561,6]
[346077480,1734693090934,-400.89,0.00023561,6]
[346077481,1734693090943,-711.74,0.00023561,6]
[346077482,1734693090953,-500.0,0.00023561,6]
[346077483,1734693090965,-506.4924741,0.00023561,6]
[346077484,1734693090977,-554.08,0.00023561,6]
[346077485,1734693090986,-500.0,0.00023561,6]
[346077486,1734693090996,-645.88,0.00023561,6]
[346077487,1734693091006,-577.97,0.00023561,6]
[346077488,1734693091015,-500.0,0.00023561,6]
[346077489,1734693091024,-1637.88,0.00023561,6]
[346077490,1734693091034,-500.0,0.00023561,6]
[346077491,1734693091045,-778.88,0.00023561,6]
[346077492,1734693091057,-500.0,0.00023561,6]
[346077493,1734693091068,-2108.73,0.00023561,6]
[346077494,1734693091077,-642.6,0.00023561,6]
[346077495,1734693091087,-500.0,0.00023561,6]
[346077496,1734693091096,-993.42,0.00023561,6]
[346077497,1734693091107,-501.95190898,0.00023561,6]
[346077498,1734693091116,-500.0,0.00023561,6]
[346077499,1734693091125,-413.026202,0.00023561,7]
[346077500,1734693091135,-500.0,0.00023561,6]
[346077501,1734693091144,-500.0,0.00023561,6]
[346077502,1734693091153,-500.0,0.00023561,6]
[346077503,1734693091162,-1347.62,0.00023561,6]
[346077504,1734693091171,-413.026198,0.00023561,7]
[346077505,1734693091181,-1576.34,0.00023561,6]
[346077506,1734693091191,-500.0,0.00023561,6]
[346077507,1734693091201,-349.70153868,0.00023561,6]
[346077508,1734693091214,-559.19,0.00023561,6]
[346077509,1734693091224,-783.39,0.00023561,6]
[346077510,1734693091234,-500.0,0.00023561,6]
[346077511,1734693091243,-500.0,0.00023561,6]
[346077512,1734693091253,-816.89,0.00023561,6]
[346077513,1734693091263,-516.5999289,0.00023561,6]
[346077514,1734693091274,-1486.6,0.00023561,6]
[346077515,1734693091283,-683.88,0.00023561,6]
[346077516,1734693091292,-500.0,0.00023561,6]
[346077517,1734693091302,-500.0,0.00023561,6]
[346077518,1734693091311,-500.0,0.00023561,6]
[346077519,1734693091320,-248.6047044,0.00023561,6]
[346077520,1734693091329,-3350.69,0.00023561,6]
[346077521,1734693091339,-500.0,0.00023561,6]
[346077522,1734693091348,-3984.39,0.00023561,6]
[346077523,1734693091359,-500.0,0.00023561,6]
[346077524,1734693091368,-563.2997311,0.00023561,6]
[346077525,1734693091378,-657.82,0.00023561,6]
[346077526,1734693091387,-908.77,0.00023561,6]
[346077527,1734693091396,-3922.68197,0.00023561,7]
[346077528,1734693091405,-500.0,0.00023561,6]
[346077529,1734693091415,-500.0,0.00023561,6]
[346077530,1734693091425,-500.0,0.00023561,6]
[346077531,1734693091435,-3922.68197582,0.00023561,7]
[346077532,1734693091444,-628.05,0.00023561,6]
[346077533,1734693091455,-500.0,0.00023561,6]
[346077534,1734693091468,-579.5,0.00023561,6]
[346077535,1734693091478,-162.087698,0.00023561,7]
[346077536,1734693091487,-162.0877,0.00023561,7]
[346077537,1734693091499,-750.31,0.00023561,6]
[346077538,1734693091509,-519.61,0.00023561,6]
[346077539,1734693091519,-500.0,0.00023561,6]
[346077540,1734693091528,-3405.57585,0.00023561,7]
[346077541,1734693091537,-2341.45,0.00023561,6]
[346077542,1734693091547,-703.35,0.00023561,6]
[346077543,1734693091556,-3405.575852,0.00023561,7]
[346077544,1734693091565,-846.66,0.00023561,6]
[346077545,1734693091574,-210.7160461,0.00023561,6]
[346077546,1734693091584,-558.24,0.00023561,6]
[346077547,1734693091594,-500.0,0.00023561,6]
[346077548,1734693091603,-784.95,0.00023561,6]
[346077549,1734693091611,-929.35,0.00023561,6]
[346077550,1734693091620,-500.0,0.00023561,6]
[346077551,1734693091630,-2078.12,0.00023561,6]
[346077552,1734693091639,-500.0,0.00023561,6]
[346077553,1734693091648,-2253.32,0.00023561,6]
[346077554,1734693091657,-753.77,0.00023561,6]
[346077555,1734693091666,-1958.52,0.00023561,6]
[346077556,1734693091675,-928.58,0.00023561,6]
[346077557,1734693091684,-500.0,0.00023561,6]
[346077558,1734693091693,-500.0,0.00023561,6]
[346077559,1734693091702,-2612.84,0.00023561,6]
[346077560,1734693091717,-816.69,0.00023561,6]
[346077561,1734693091726,-500.0,0.00023561,6]
[346077562,1734693091735,-283.033407,0.00023561,7]
[346077563,1734693091744,-942.58,0.00023561,6]
[346077564,1734693091752,-283.033402,0.00023561,7]
[346077565,1734693091762,-998.57,0.00023561,6]
[346077566,1734693091771,-500.0,0.00023561,6]
[346077567,1734693091780,-500.0,0.00023561,6]
[346077568,1734693091789,-3375.68,0.00023561,6]
[346077569,1734693091798,-3019.62,0.00023561,6]
[346077570,1734693091807,-591.11,0.00023561,6]
[346077571,1734693091816,-214.78243939,0.00023561,6]
[346077572,1734693091825,-500.0,0.00023561,6]
[346077573,1734693091834,-829.78,0.00023561,6]
[346077574,1734693091844,-500.0,0.00023561,6]
[346077575,1734693091853,-870.11,0.00023561,6]
[346077576,1734693091862,-2878.24,0.00023561,6]
[346077577,1734693091871,-500.0,0.00023561,6]
[346077578,1734693091881,-500.0,0.00023561,6]
[346077579,1734693091892,-500.0,0.00023561,6]
[346077580,1734693091901,-2093.85,0.00023561,6]
[346077581,1734693091910,-561.5,0.00023561,6]
[346077582,1734693091920,-1016.53174185,0.00023561,6]
[346077583,1734693091929,-500.0,0.00023561,6]
[346077584,1734693091938,-575.58,0.00023561,6]
[346077585,1734693091948,-500.0,0.00023561,6]
[346077586,1734693091957,-606.38,0.00023561,6]
[346077587,1734693091973,-500.0,0.00023561,6]
[346077588,1734693091983,-1051.37,0.00023561,6]
[346077589,1734693091992,-500.0,0.00023561,6]
[346077590,1734693092001,-605.01,0.00023561,6]
[346077591,1734693092010,-1895.2,0.00023561,6]
[346077592,1734693092019,-1304.77,0.00023561,6]
[346077593,1734693092028,-978.44,0.00023561,6]
[346077594,1734693092038,-457.96000079,0.00023561,6]
[346077595,1734693092047,-207.78833645,0.00023561,6]
[346077596,1734693092056,-186.82888,0.00023561,7]
[346077597,1734693092066,-151.0,0.00023561,7]
[346077598,1734693092075,-823.06,0.00023561,6]
[346077599,1734693092085,-1110.35,0.00023561,6]
[346077600,1734693092094,-3107.96,0.00023561,6]
[346077601,1734693092104,-15620.31,0.00023561,6]
[346077602,1734693092114,-186.82888,0.00023561,7]
[346077603,1734693092123,-189.753428,0.00023561,7]
[346077604,1734693092132,-1979.3,0.00023561,6]
[346077605,1734693092142,-1698.36,0.00023561,6]
[346077606,1734693092151,-189.753436,0.00023561,7]
[346077607,1734693092161,-1217.27,0.00023561,6]
[346077608,1734693092171,-1129.89,0.00023561,6]
[346077609,1734693092180,-480.29803239,0.00023561,6]
[346077610,1734693092190,-500.0,0.00023561,6]
[346077611,1734693092199,-3084.04,0.00023561,6]
[346077612,1734693092210,-500.0,0.00023561,6]
[346077613,1734693092221,-611.22,0.00023561,6]
[346077614,1734693092230,-500.0,0.00023561,6]
[346077615,1734693092240,-514.9,0.00023561,6]
[346077616,1734693092249,-749.85,0.00023561,6]
[346077617,1734693092259,-1079.40644,0.00023561,7]
[346077618,1734693092268,-1709.27,0.00023561,6]
[346077619,1734693092278,-631.5,0.00023561,6]
[346077620,1734693092288,-1079.40645,0.00023561,7]
[346077621,1734693092297,-3926.23,0.00023561,6]
[346077622,1734693092306,-681.759088,0.00023561,7]
[346077623,1734693092315,-8032.25,0.00023561,6]
[346077624,1734693092324,-957.95,0.00023561,6]
[346077625,1734693092334,-681.759087,0.00023561,7]
[346077626,1734693092343,-647.04,0.00023561,6]
[346077627,1734693092353,-500.0,0.00023561,6]
[346077628,1734693092362,-500.0,0.00023561,6]
[346077629,1734693092372,-880.3,0.00023561,6]
[346077630,1734693092381,-828.99,0.00023561,6]
[346077631,1734693092390,-500.0,0.00023561,6]
[346077632,1734693092399,-500.0,0.00023561,6]
[346077633,1734693092408,-500.0,0.00023561,6]
[346077634,1734693092418,-1556.66,0.00023561,2]
[346077635,1734693092430,-500.0,0.00023561,6]
[346077636,1734693092440,-772.83,0.00023561,6]
[346077637,1734693092449,-933.46,0.00023561,6]
[346077638,1734693092458,-727.74,0.00023561,6]
[346077639,1734693092470,-1507.13,0.00023561,6]
[346077640,1734693092478,-628.91,0.00023561,6]
[346077641,1734693092487,-331.86691342,0.00023561,6]
[346077642,1734693092497,-500.0,0.00023561,6]
[346077643,1734693092506,-1026.99,0.00023561,6]
[346077644,1734693092516,-20507.92,0.00023561,6]
[346077645,1734693092525,-1914.41,0.00023561,6]
[346077646,1734693092533,-945.69,0.00023561,6]
[346077647,1734693092542,-769.8,0.00023561,6]
[346077648,1734693092552,-31690.43,0.00023561,6]
[346077649,1734693092561,-10891.37,0.00023561,6]
[346077650,1734693092570,-1881.92,0.00023561,6]
[346077651,1734693092579,-551.82,0.00023561,6]
[346077652,1734693092588,-500.0,0.00023561,6]
[346077653,1734693092598,-500.0,0.00023561,6]
[346077654,1734693092607,-741.52,0.00023561,6]
[346077655,1734693092616,-739.27,0.00023561,6]
[346077656,1734693092626,-500.0,0.00023561,6]
[346077657,1734693092635,-599.48,0.00023561,6]
[346077658,1734693092644,-500.0,0.00023561,6]
[346077659,1734693092653,-674.12,0.00023561,6]
[346077660,1734693092662,-500.0,0.00023561,6]
[346077661,1734693092671,-1525.74,0.00023561,6]
[346077662,1734693092681,-82254.19,0.00023561,6]
[346077663,1734693092690,-5572.46,0.00023561,6]
[346077664,1734693092699,-500.0,0.00023561,6]
[346077665,1734693092710,-730.97,0.00023561,6]
[346077666,1734693092720,-623.84,0.00023561,6]
[346077667,1734693092730,-500.0,0.00023561,6]
[346077668,1734693092739,-12564.99,0.00023561,6]
[346077669,1734693092748,-500.0,0.00023561,6]
[346077670,1734693092757,-734.96,0.00023561,6]
[346077671,1734693092767,-5780.94,0.00023561,6]
[346077672,1734693092776,-774.73,0.00023561,6]
[346077673,1734693092785,-836.63,0.00023561,6]
[346077674,1734693092794,-500.0,0.00023561,6]
[346077675,1734693092803,-527.3,0.00023561,6]
[346077676,1734693092811,-5039.08,0.00023561,6]
[346077677,1734693092820,-500.0,0.00023561,6]
[346077678,1734693092829,-500.0,0.00023561,6]
[346077679,1734693092838,-2098.69,0.00023561,6]
[346077680,1734693092849,-1080.46,0.00023561,6]
[346077681,1734693092858,-648.6,0.00023561,6]
[346077682,1734693092868,-603.16,0.00023561,6]
[346077683,1734693092877,-4746.74,0.00023561,6]
[346077684,1734693092886,-3087.43,0.00023561,6]
[346077685,1734693092895,-501.84,0.00023561,6]
[346077686,1734693092904,-500.0,0.00023561,6]
[346077687,1734693092913,-895.12,0.00023561,6]
[346077688,1734693092922,-500.0,0.00023561,6]
[346077689,1734693092931,-906.86,0.00023561,6]
[346077690,1734693092940,-645.86,0.00023561,6]
[346077691,1734693092950,-796.51,0.00023561,6]
[346077692,1734693092959,-4289.65,0.00023561,6]
[346077693,1734693092971,-1129.09,0.00023561,6]
[346077694,1734693092979,-641.11,0.00023561,6]
[346077695,1734693092988,-1127.64,0.00023561,6]
[346077696,1734693092997,-31466.27,0.00023561,6]
[346077697,1734693093006,-797.8,0.00023561,6]
[346077698,1734693093016,-500.0,0.00023561,6]
[346077699,1734693093025,-500.0,0.00023561,6]
[346077700,1734693093035,-996.74,0.00023561,6]
[346077701,1734693093044,-500.0,0.00023561,6]
[346077702,1734693093054,-500.0,0.00023561,6]
[346077703,1734693093063,-1422.15,0.00023561,6]
[346077704,1734693093073,-345.91557391,0.00023561,6]
[346077705,1734693093082,-1104.77,0.00023561,6]
[346077706,1734693093092,-500.0,0.00023561,6]
[346077707,1734693093101,-505.39,0.00023561,6]
[346077708,1734693093111,-7845.89,0.00023561,6]
[346077709,1734693093120,-953.99,0.00023561,6]
[346077710,1734693093130,-500.0,0.00023561,6]
[346077711,1734693093139,-4901.08,0.00023561,6]
[346077712,1734693093149,-1667.65,0.00023561,6]
[346077713,1734693093159,-435.76886045,0.00023561,6]
[346077714,1734693093169,-500.0,0.00023561,6]
[346077715,1734693093178,-477.486177,0.00023561,6]
[346077716,1734693093187,-500.0,0.00023561,6]
[346077717,1734693093196,-989.18,0.00023561,6]
[346077718,1734693093205,-871.64,0.00023561,6]
[346077719,1734693093218,-4701.04,0.00023561,6]
[346077720,1734693093228,-1915.75,0.00023561,6]
[346077721,1734693093237,-10035.19,0.00023561,6]
[346077722,1734693093247,-1877.64,0.00023561,6]
[346077723,1734693093257,-1244.76,0.00023561,2]
[346077724,1734693093267,-7749.62,0.00023561,6]
[346077725,1734693093277,-500.0,0.00023561,6]
[346077726,1734693093287,-5377.96,0.00023561,6]
[346077727,1734693093297,-2173.89,0.00023561,6]
[346077728,1734693093307,-2633.81,0.00023561,6]
[346077729,1734693093316,-2682.03,0.00023561,6]
[346077730,1734693093326,-385.11104927,0.00023561,6]
[346077731,1734693093335,-500.0,0.00023561,6]
[346077732,1734693093345,-500.0,0.00023561,6]
[346077733,1734693093355,-500.0,0.00023561,6]
[346077734,1734693093364,-568.8,0.00023561,6]
[346077735,1734693093375,-500.0,0.00023561,6]
[346077736,1734693093385,-1371.8,0.00023561,6]
[346077737,1734693093394,-500.0,0.00023561,6]
[346077738,1734693093404,-500.0,0.00023561,6]
[346077739,1734693093415,-4069.31,0.00023561,6]
[346077740,1734693093427,-510.63690673,0.00023561,6]
[346077741,1734693093437,-500.0,0.00023561,6]